Workbook

Sheet полевые раб.
B1: ИНФОРМАЦИЯ ПО ВЕРЕЩАГИНСКОМУ РАЙОНУ
A2: Полевые работы на 27.05.2019
A3: Наименование хозяйства | D3: Подкормка многолетних трав, га | E3: Подкормка озимых, га | F3: Боронование многолетних трав, га | G3: Боронование озимых, га | H3: Весновспашка,га | I3: Культивация | J3: Закрытие влаги, га | K3: Протравлено семян, т
A4: ОАО ППС "Тимирязевский" | D4: 98 | E4: 30 | F4: 400 | I4: 23 | J4: 34 | L4: закончили
A5: ООО "Ленинское" | F5: 750 | I5: 20 | J5: 20 | L5: закончили
A6: ООО "Агросепыч" | D6: 312 | E6: 134 | F6: 2060 | G6: 134 | I6: 1697 | J6: 1699
A7: ООО АП "Соколово" | F7: 800 | I7: 690 | J7: 530 | L7: закончили
A8: ООО АФ "Галинское" | F8: 2936 | H8: 256 | I8: 408 | J8: 0
A9: ООО "Заполье" | D9: 240 | F9: 900 | I9: 1000 | J9: 1300 | L9: закончили, остался посев однолетки
A10: ООО АП "Заря Путино" | D10: 3245 | E10: 502 | F10: 3245 | G10: 953 | H10: 200 | I10: 4151 | J10: 4151
A11: Итого по предприятиям: | D11: =SUM(D4:D10) -> 3895 | E11: 666 | F11: 11091 | G11: 1087 | H11: 456 | I11: 7989 | J11: =SUM(J4:J10) -> 7734 | K11: =SUM(K4:K10) -> 0
A12: КФХ | D12: 150 | F12: 1269.2 | H12: 100 | I12: 669 | J12: 711 | L12: закончили
A13: ВСЕГО: | D13: =D11+D12 -> 4045 | E13: =E11+E12 -> 666 | F13: 12360.2 | G13: 1087 | H13: 556 | I13: 8658 | J13: 8445 | K13: 0
A14: По району на 27.05.2018г. | D14: 3198 | E14: 695 | F14: 10281.5 | G14: 285 | I14: 6470 | J14: 7463.7 | K14: 450

Sheet сев
A2: Наименование хозяйства | D2: Яровой сев (зерновые и зернобобовые), га | S2: Зрновые и зернобобовые, всего, га | V2: Яровой сев (прочие), га | AE2: Яровой сев, всего, га | AG2: %
D3: пшеница | G3: ячмень | J3: овес | M3: горох | P3: прочие | S3: План | T3: Факт | U3: % | V3: рапс | Y3: кукуруза | AB3: однолетние | AC3: мн. травы б/п | AD3: картофель | AE3: План | AF3: Факт
D4: план | E4: факт | F4: % | G4: план | H4: факт | I4: % | J4: план | K4: факт | L4: % | M4: план | N4: факт | O4: % | P4: план | Q4: факт | R4: % | V4: план | W4: факт | X4: % | Y4: план | Z4: факт | AA4: %
A5: ОАО ППС "Тимирязевский" | F5: =E5/D5*100 ->  | I5: =H5/G5*100 ->  | L5: =K5/J5*100 ->  | O5: =N5/M5*100 ->  | R5: =Q5/P5*100 ->  | S5: 0 | T5: 0 | U5: =T5/S5*100 ->  | X5: =W5/V5*100 ->  | AA5: =Z5/Y5*100 ->  | AB5: 34 | AE5: 34 | AF5: =T5+W5+Z5+AB5+AC5+AD5 -> 34 | AG5: =AF5/AE5*100 -> 100.0
A6: ООО "Ленинское" | F6: =E6/D6*100 ->  | I6: =H6/G6*100 ->  | L6: =K6/J6*100 ->  | O6: =N6/M6*100 ->  | R6: =Q6/P6*100 ->  | S6: 0 | T6: 0 | AB6: 20 | AE6: 20 | AF6: =T6+W6+Z6+AB6+AC6+AD6 -> 20 | AG6: 100.0
A7: ООО "Агросепыч" | D7: 824 | E7: 600 | F7: 72.82 | G7: 885 | H7: 636 | I7: 71.86 | J7: 402 | K7: 266 | L7: 66.17 | M7: 265 | N7: 5 | O7: 1.89 | Q7: 304 | S7: 2376 | T7: =E7+H7+K7+N7+Q7 -> 1811 | U7: 76.22 | AB7: 346 | AE7: 3390 | AF7: 2157 | AG7: 63.6
A8: ООО АП "Соколово" | D8: 120 | E8: 120 | F8: 100.00 | J8: 170 | K8: 170 | L8: 100.00 | S8: 290 | T8: =E8+H8+K8+N8+Q8 -> 290 | U8: 100.00 | AB8: 400 | AE8: 690 | AF8: 690 | AG8: 100.0 | AH8: 200 га многолетние п/п
A9: ООО АФ "Галинское" | D9: 80 | E9: 50 | F9: 62.50 | J9: 290 | K9: 250 | L9: 86.21 | S9: 370 | T9: 300 | U9: 81.08 | AB9: 108 | AE9: 900 | AF9: 408 | AG9: 45.3
A10: ООО "Заполье" | D10: 100 | E10: 100 | F10: 100.00 | G10: 112 | H10: 112 | I10: 100.00 | J10: 288 | K10: 288 | L10: 100.00 | S10: 500 | T10: 500 | U10: 100.00 | AB10: 500 | AE10: 1300 | AF10: 1000 | AG10: 76.9
A11: ООО АП "Заря Путино" | D11: 388 | E11: 388 | F11: 100.00 | G11: 1272 | H11: 1229 | I11: 96.62 | J11: 398 | K11: 398 | L11: 100.00 | M11: 115 | N11: 115 | O11: 100.00 | S11: 2173 | T11: =E11+H11+K11+N11+Q11 -> 2130 | U11: 98.02 | V11: 632 | W11: 632 | X11: 100.00 | Y11: 952 | Z11: 359 | AA11: 37.71 | AB11: 685 | AE11: 5486 | AF11: 3806 | AG11: 69.4
A12: Итого по предприятиям: | D12: =SUM(D5:D11) -> 1512 | E12: =SUM(E5:E11) -> 1258 | F12: 83.20 | G12: 2269 | H12: 1977 | I12: 87.13 | J12: 1548 | K12: 1372 | L12: 88.63 | M12: 380 | N12: 120 | O12: 31.58 | P12: 0 | Q12: 304 | S12: 5709 | T12: 5031 | U12: 88.12 | V12: 632 | W12: 632 | X12: 100.00 | Y12: 952 | Z12: 359 | AA12: 37.71 | AB12: 2093 | AC12: 0 | AD12: 0 | AE12: 11820 | AF12: 8115 | AG12: 68.7
A13: КФХ | D13: 266 | E13: 266 | F13: 100.00 | G13: 63 | H13: 63 | I13: 100.00 | J13: 303 | K13: 303 | L13: 100.00 | S13: 632 | T13: =E13+H13+K13+N13+Q13 -> 632 | U13: 100.00 | AD13: 6 | AE13: 638 | AF13: 638 | AG13: 100.0
A14: ВСЕГО: | D14: =D12+D13 -> 1778 | E14: =E12+E13 -> 1524 | F14: 85.71 | G14: 2332 | H14: 2040 | I14: 87.48 | J14: 1851 | K14: 1675 | L14: 90.49 | M14: 380 | N14: 120 | O14: 31.58 | P14: 0 | Q14: 304 | S14: 6341 | T14: 5663 | U14: 89.31 | V14: 632 | W14: 632 | X14: 100.00 | Y14: 952 | Z14: 359 | AA14: 37.71 | AB14: 2093 | AC14: 0 | AD14: 6 | AE14: 12458 | AF14: 8753 | AG14: 70.3
A15: По району на 27.05.2018г. | E15: 1054 | H15: 1470 | K15: 1411 | N15: 335 | Q15: 0 | T15: =E15+H15+K15+N15 -> 4270 | W15: 284 | Z15: 255 | AB15: 1357 | AC15: 65 | AF15: 6235

Sheet полев.раб.КФХ
A1: Полевые работы
A2: Наименование хозяйства | D2: Подкормка многолетних трав, га | E2: Подкормка озимых, га | F2: Боронование многолетних трав, га | G2: Боронование озимых, га | H2: Весновспашка,га | I2: Культивация | J2: Закрытие влаги, га | K2: Протравлено семян, т
A3: Азанов П.И. | F3: 50 | H3: 15 | I3: 35 | J3: 35
A4: Мартюшев В.А. | F4: 40 | I4: 138 | J4: 138 | L4: закр.вл.закончил
A5: Шипицын В.А. | F5: 29 | J5: 31 | L5: закончил
A6: Филимонов М.П. | F6: 110 | H6: 70 | I6: 350 | J6: 350
A7: Кадочников В.А. | F7: 277 | I7: 50 | J7: 50 | L7: закончил
A8: Соловьев (проч.) | F8: 133.2 | I8: 38 | J8: 57 | L8: закончил
A9: Илюшин П.З. (проч.) | F9: 499 | I9: 1 | L9: закончил
A10: Баженов С.С. (проч.) | F10: 28 | I10: 20 | J10: 20 | L10: закончил
A11: Шалунцов Д.О. | I11: 7 | L11: закончил
A12: Жданов А.И. (проч.) | F12: 60 | H12: 15 | I12: 30 | J12: 30 | L12: закончил
A13: Сулима И.А. | D13: 150 | F13: 43
A14: ВСЕГО: | D14: =SUM(D3:D13) -> 150 | E14: =SUM(E3:E13) -> 0 | F14: =SUM(F3:F13) -> 1269.2 | G14: =SUM(G3:G13) -> 0 | H14: 100 | I14: 669 | J14: 711 | K14: 0

Sheet сев КФХ
A2: Наименование хозяйства | D2: Посев зерновых и зернобобовых, га | S2: Всего зерновых и зернобобовых, га | V2: Яровой сев, га | AF2: Яровой сев всего, га | AH2: %
D3: пшеница | G3: ячмень | J3: овес | M3: горох | P3: вика | S3: План | T3: Факт | U3: % | V3: рапс | Y3: кукуруза | AB3: картофель | AC3: прочие однолетние | AD3: мн. травы б/п | AE3: мног.травы подпокр. | AF3: План | AG3: Факт
D4: план | E4: факт | F4: % | G4: план | H4: факт | I4: % | J4: план | K4: факт | L4: % | M4: план | N4: факт | O4: % | P4: план | Q4: факт | R4: % | V4: план | W4: факт | X4: % | Y4: план | Z4: факт | AA4: %
A5: Азанов П.И. | D5: 35 | E5: 35 | F5: =E5/D5*100 -> 100 | I5: =H5/G5*100 ->  | J5: 15 | K5: 15 | L5: =K5/J5*100 -> 100 | O5: =N5/M5*100 ->  | R5: =Q5/P5*100 ->  | S5: =D5+G5+J5+M5+P5 -> 50 | T5: =E5+H5+K5+N5+Q5 -> 50 | U5: =T5/S5*100 -> 100 | X5: =W5/V5*100 ->  | AA5: =Z5/Y5*100 ->  | AF5: 50 | AG5: =T5+W5+Z5+AB5+AC5+AD5+AE5 -> 50 | AH5: =AG5/AF5*100 -> 100.0
A6: Мартюшев В.А. | D6: 51 | E6: 51 | F6: =E6/D6*100 -> 100 | G6: 41 | H6: 41 | I6: =H6/G6*100 -> 100 | J6: 46 | K6: 46 | L6: =K6/J6*100 -> 100 | O6: =N6/M6*100 ->  | R6: =Q6/P6*100 ->  | S6: =D6+G6+J6+M6+P6 -> 138 | T6: =E6+H6+K6+N6+Q6 -> 138 | U6: 100.0 | X6: =W6/V6*100 ->  | AA6: =Z6/Y6*100 ->  | AF6: 138 | AG6: =T6+W6+Z6+AB6+AC6+AD6+AE6 -> 138 | AH6: 100.0
A7: Шипицын В.А. | D7: 21 | E7: 21 | F7: 100 | J7: 15 | K7: 15 | L7: 100 | S7: 36 | T7: 36 | U7: 100.0 | AF7: 36 | AG7: 36 | AH7: 100.0
A8: Филимонов М.П. | D8: 130 | E8: 130 | F8: 100 | J8: 130 | K8: 130 | L8: 100 | S8: 260 | T8: 260 | U8: 100.0 | AF8: 260 | AG8: 260 | AH8: 100.0
A9: Кадочников В.А. | D9: 25 | E9: 25 | F9: 100 | J9: 25 | K9: 25 | L9: 100 | S9: 50 | T9: 50 | U9: 100.0 | AF9: 50 | AG9: 50 | AH9: 100.0
A10: Сольвьев (проч.) | D10: 14 | E10: 14 | F10: 100 | G10: 12 | H10: 12 | I10: 100 | J10: 32 | K10: 32 | L10: 100 | S10: 58 | T10: 58 | U10: 100.0 | AF10: 58 | AG10: 58 | AH10: 100.0
A11: Илюшин П.З. (проч.) | S11: 0 | T11: 0 | AB11: 1 | AF11: 1 | AG11: 1 | AH11: 100.0
A12: Баженов С.С. (проч.) | D12: 10 | E12: 10 | F12: 100 | J12: 10 | K12: 10 | L12: 100 | S12: 20 | T12: 20 | U12: 100.0 | AC12: =SUM(AC5:AC11) -> 0 | AF12: 20 | AG12: 20 | AH12: 100.0
A13: Жданов А.И. (проч.) | D13: 5 | E13: 5 | F13: 100 | G13: 10 | H13: 10 | I13: 100 | J13: 5 | K13: 5 | L13: 100 | S13: 20 | T13: 20 | U13: 100.0 | AB13: 5 | AF13: 25 | AG13: 25 | AH13: 100.0
A14: ВСЕГО: | D14: =SUM(D5:D13) -> 291 | E14: =SUM(E5:E13) -> 291 | F14: 100 | G14: 63 | H14: 63 | I14: 100 | J14: 278 | K14: 278 | L14: 100 | M14: 0 | N14: 0 | P14: 0 | Q14: 0 | S14: 632 | T14: 632 | V14: 0 | W14: 0 | Y14: 0 | Z14: 0 | AB14: =SUM(AB5:AB13) -> 6 | AC14: 0 | AD14: 0 | AE14: 0 | AF14: 638 | AG14: 638 | AH14: 100.0
A17: Сулима И.А. многолетние п/п 43 га (клевер, люцерна, овес, клевер, тимофеевка)
